Cogmind - Beta 13 @@@ ROGUE MODE // 2024.04.09 @ 15:36:31 Player: Demo Result: Destroyed by G-67 Veteran with Plasma Rifle Performance ------------- Evolutions (4) 2000 Regions Visited (5) 1000 Robots Destroyed (53) 265 Value Destroyed (1440) 1440 Prototype IDs (3) 60 Alien Tech Used (0) 0 Bonus (26) 26 TOTAL SCORE: 4791 Bonus ------- High Alert Combat Kills 26 Cogmind --------- Core Integrity 0/850 Matter 19/300 Energy 98/100 System Corruption 1% Temperature Cool (12) Movement Core (50) Location -6/Factory Parts ------- > --- POWER (1) -------- (None) > --- PROPULSION (4) --- (None) > --- UTILITY (6) ------ Enhanced Optical Array Hacking Suite > --- WEAPON (4) ------- (None) > --- INVENTORY (5) ---- Matter Compressor (0) Matter Compressor (0) Improved Particle Charger Peak State ------------ > --- POWER ------------ (None) > --- PROPULSION ------- Armored Treads Armored Treads Armored Treads Armored Treads > --- UTILITY ---------- Armored Scrap Engine Matter Compressor Enhanced Optical Array > --- WEAPON ----------- Heavy Rocket Launcher Heavy Rocket Launcher > --- INVENTORY -------- Matter Compressor Improved Particle Charger [Rating: 49] Favorites ----------- Power Light Ion Engine Engine Light Ion Engine Propulsion Wheel Treads Light Treads Wheel Wheel Utility Seismic Detector Device Seismic Detector Storage Medium Storage Unit Processor Enhanced Optical Array Hackware Hacking Suite Protection Propulsion Shielding Weapon Assault Rifle Energy Gun Small Laser Energy Cannon Beam Cannon Ballistic Gun Assault Rifle Ballistic Cannon Constructs Launcher Rocket Launcher Impact Weapon Great Maul Build | -11 -10 -10 -10 -8 -6 ------- Run | Yrd Mat Min Sub Rec Fac Slots Evolved 8 | . . . . . 8 Power . | . . . . . . Propulsion 2 | . . . . . 2 Utility 4 | . . . . . 4 Weapon 2 | . . . . . 2 Parts Attached 46 | 7 4 7 6 1 21 Power 3 | 1 . 1 1 . . Engine 3 | 1 . 1 1 . . Core . | . . . . . . Reactor . | . . . . . . Propulsion 13 | 2 3 1 2 1 4 Treads 9 | 1 2 1 . 1 4 Leg . | . . . . . . Wheel 4 | 1 1 . 2 . . Hover . | . . . . . . Flight . | . . . . . . Utility 12 | 2 1 . . . 9 Device 6 | 1 . . . . 5 Storage 3 | 1 1 . . . 1 Processor 1 | . . . . . 1 Hackware 1 | . . . . . 1 Protection 1 | . . . . . 1 Artifact . | . . . . . . Weapon 18 | 2 . 5 3 . 8 Energy Gun 2 | 1 . 1 . . . Energy Cannon 1 | . . . 1 . . Ballistic Gun 4 | 1 . 2 1 . . Ballistic Cannon . | . . . . . . Launcher 10 | . . 2 1 . 7 Special Weapon . | . . . . . . Impact Weapon 1 | . . . . . 1 Slashing Weapon . | . . . . . . Piercing Weapon . | . . . . . . Special Melee Weapon . | . . . . . . Unidentified Prototypes . | . . . . . . Parts Lost 25 | . . . 4 . 21 Power 1 | . . . . . 1 Propulsion 9 | . . . 2 . 7 Utility 8 | . . . . . 8 Weapon 7 | . . . 2 . 5 Highest Loss Streak 8 | . . . 2 . 8 To Critical Strikes 2 | . . . 1 . 1 Average Slot Usage (%) 85 | . 100 100 100 99 55 Engine 10 | . 14 14 14 14 4 Treads 12 | . 14 14 14 13 8 Wheel 12 | . 14 14 14 14 7 Device 14 | . 14 14 14 14 15 Storage 10 | . 14 14 14 14 4 Protection 1 | . . . . . 4 Energy Gun 6 | . 14 14 7 . . Energy Cannon 3 | . . . 6 14 2 Ballistic Gun 8 | . 14 13 3 14 . Launcher 1 | . . . 10 . . Naked Turns . | . . . . . . Heaviest Build 27 | 12 17 25 25 19 27 Greatest Support 27 | 10 20 20 10 10 27 Greatest Overweight (x) 3 | 1 1 2 2 1 3 Average Overweight (x) . | . . 1 1 1 . Largest Inventory Capacity 10 | 8 10 10 10 10 10 Average Capacity 9 | 7 8 10 10 10 8 Most Carried 10 | 7 8 10 10 10 10 Average Carried 7 | 2 7 9 8 9 5 Final Capacity 10 | 8 10 10 10 10 5 Final Carried 10 | 7 8 10 7 10 3 Scrap Engine Consumption 16 | . . . . . 16 Constructs Created 3 | . . . . . 3 Constructs Modified 1 | . . . . . 1 Class Distribution -------------------- 58% | Scavenger-Mutant 41% | Mutant Dominant Class ---------------- Mutant | -10/Materials Scavenger-Mutant | -10/Mines Scavenger-Mutant | -10/Subcaves Scavenger-Mutant | -8/Recycling Scavenger-Mutant | -6/Factory Resources | -11 -10 -10 -10 -8 -6 ----------- Run | Yrd Mat Min Sub Rec Fac Matter Collected 1078 | 189 262 90 188 145 204 Remotely . | . . . . . . Salvage Created 1251 | 167 323 231 258 . 272 Parts 69 | 17 18 17 10 . 7 Haulers Intercepted 2 | . 2 . . . . Recyclers Shooed . | . . . . . . Parts Field Recycled . | . . . . . . Retrieved Matter . | . . . . . . Parts Self-Destructed 9 | . . . 9 . . Prevented . | . . . . . . Kills | -11 -10 -10 -10 -8 -6 ------- Run | Yrd Mat Min Sub Rec Fac Combat Hostiles Destroyed 36 | . 5 10 12 . 9 Melee 1 | . . . . . 1 Guns 13 | . 5 8 . . . Cannons 1 | . . . 1 . . AOE 21 | . . 2 11 . 8 Classes Destroyed 13 | 2 4 2 2 . 3 Worker 1 | . 1 . . . . Builder 3 | . . . . . 3 Tunneler 6 | 5 . 1 . . . Hauler 2 | . 2 . . . . Recycler 2 | 1 . . . . 1 Turret 2 | . . . 2 . . Watcher 1 | . 1 . . . . Swarmer 12 | . . 8 4 . . Grunt 7 | . 5 . . . 2 Sentry 5 | . . 2 . . 3 Hunter 3 | . . . . . 3 Programmer 1 | . . . . . 1 Subdweller 8 | . . . 8 . . Best Kill Streak 8 | 6 2 3 8 . 7 Combat Bots Only 6 | . 2 3 6 . 6 Max Kills in Single Turn 3 | 1 1 2 2 . 3 Gunslinging 1 | . . 1 . . . Exploded 3 | . . 2 2 . 3 Melee 1 | . . . . . 1 Uniques/NPCs Destroyed . | . . . . . . Combat | -11 -10 -10 -10 -8 -6 -------- Run | Yrd Mat Min Sub Rec Fac Hostile Shots Fired 594 | . 31 28 44 . 491 Missed 224 | . 7 7 19 . 191 Damage Taken 4737 | . 332 156 513 . 3736 Core 1051 | . 59 76 57 . 859 Absorbed by Shields . | . . . . . . Redirected to Shielding 52 | . . . . . 52 Core Remaining (%) 61 | 100 . . . 23 . Volleys Fired 119 | 13 34 22 23 3 24 Largest 2 | 2 2 2 2 2 2 Hottest 93 | 60 60 89 93 80 78 Shots Fired 211 | 26 68 41 38 6 32 Gun 139 | 26 68 35 7 3 . Cannon 21 | . . . 14 3 4 Launcher 51 | . . 6 17 . 28 Special . | . . . . . . Kinetic 71 | 13 34 16 1 3 4 Thermal 89 | 13 34 19 20 3 . Explosive 51 | . . 6 17 . 28 Electromagnetic . | . . . . . . Robot Hit Streak 11 | 4 9 7 11 3 4 Robot Miss Streak 4 | 3 3 4 4 1 3 Penetration Max . | . . . . . . Secondary Targets 1 | . . 1 . . . Max Gunslinging Chain 1 | . . 1 . . . Shots Hit Robots 121 | 14 43 18 24 4 18 Core Hits 99 | 7 18 12 29 1 32 Critical Kills 1 | . . . . . 1 Critical Parts Destroyed 2 | . . . . . 2 Critical Strikes 6 | . . 2 1 . 3 Burn 3 | . . 2 1 . . Smash 3 | . . . . . 3 Melee Attacks 14 | . . . . . 14 Impact 14 | . . . . . 14 Slashing . | . . . . . . Piercing . | . . . . . . Sneak Attacks 3 | . . . . . 3 Combat Hostiles . | . . . . . . Follow-up Attacks . | . . . . . . Damage Inflicted 4843 | 166 569 461 1414 55 2178 Guns 1064 | 166 569 220 72 37 . Cannons 250 | . . . 211 18 21 Explosions 3121 | . . 241 1131 . 1749 Melee 394 | . . . . . 394 Ramming 14 | . . . . . 14 Kinetic 572 | 101 328 85 . 37 21 Thermal 875 | 65 241 135 283 18 133 Explosive 2988 | . . 241 1131 . 1616 Electromagnetic . | . . . . . . Impact 394 | . . . . . 394 Slashing . | . . . . . . Piercing . | . . . . . . Highest Corruption 1 | . . . . . 1 Average Corruption 1 | . . . . . 1 Corruption Purged . | . . . . . . Corruption Blocked . | . . . . . . Effects 1 | . . . . . 1 Matter Fused 1 | . . . . . 1 Overload Shots . | . . . . . . Overflow Damage 447 | . . 40 4 1 402 Projectiles 1 | . . . . 1 . Explosions 118 | . . 40 4 . 74 Melee 328 | . . . . . 328 Knockbacks . | . . . . . . Impact . | . . . . . . Kinetic . | . . . . . . Secondary . | . . . . . . Self-Inflicted Damage 227 | . . . 21 . 206 Shots 6 | . . . 1 . 5 Rammed 9 | . . . . . 9 Targets Rammed 9 | . . . . . 9 Kicked . | . . . . . . Crushed . | . . . . . . Highest Temperature 165 | . 165 144 1 56 19 Average Temperature 65 | . 89 55 1 25 8 Received Heat Transfer 762 | . 228 . 72 . 462 Siege Activations . | . . . . . . Robots Corrupted . | . . . . . . Combat Hostiles . | . . . . . . Parts Fried 5 | . . . . . 5 Impact Corruptions 7 | . . . . . 7 Robots Melted . | . . . . . . Combat Hostiles . | . . . . . . Parts Melted 5 | . . 3 2 . . Heat Transferred 2022 | 150 550 482 703 37 100 Parts Sabotaged . | . . . . . . Parts Stolen . | . . . . . . Parts Stripped . | . . . . . . Power Chain Reactions . | . . . . . . Alert | -11 -10 -10 -10 -8 -6 ------- Run | Yrd Mat Min Sub Rec Fac Peak Influence 436 | 30 117 339 . 164 436 Initial 164 | . 19 39 . 164 68 Average 117 | 15 71 213 . 164 100 Maximum Alert Level 2 | . . 1 . . 2 Low Security (%) 87 | 100 100 54 . 100 86 Level 1 9 | . . 45 . . 3 Level 2 3 | . . . . . 9 Level 3 . | . . . . . . Level 4 . | . . . . . . Level 5 . | . . . . . . High Security . | . . . . . . Max Security . | . . . . . . Squads Dispatched 6 | . 1 . . . 5 Investigation 1 | . 1 . . . . Extermination 2 | . . . . . 2 Reinforcement 3 | . . . . . 3 Assault . | . . . . . . Garrison . | . . . . . . Intercept . | . . . . . . Searches Triggered . | . . . . . . Construction Impeded 2 | . . . . . 2 Haulers Reinforced . | . . . . . . Active Scanning Responses . | . . . . . . Cargo Convoy Interrupts . | . . . . . . Stealth | -11 -10 -10 -10 -8 -6 --------- Run | Yrd Mat Min Sub Rec Fac Distress Signals 1 | . 1 . . . . Communications Jammed . | . . . . . . Distress Signals . | . . . . . . Times Spotted 60 | . 8 10 19 . 23 Peak Tracking Total 8 | . 3 3 6 . 8 Tactical Retreats 6 | . . 2 1 . 3 Traps | -11 -10 -10 -10 -8 -6 ------- Run | Yrd Mat Min Sub Rec Fac Traps Triggered 2 | . 1 . . . 1 Indirectly . | . . . . . . Trap Hack Attempts . | . . . . . . Triggered . | . . . . . . Disarmed . | . . . . . . Reprogrammed . | . . . . . . Reused . | . . . . . . Traps Extracted . | . . . . . . Installed . | . . . . . . Triggered . | . . . . . . Machines | -11 -10 -10 -10 -8 -6 ---------- Run | Yrd Mat Min Sub Rec Fac Machines Disabled 7 | . . . 3 . 4 Max in Single Turn 2 | . . . 2 . 2 Machines Repaired . | . . . . . . Machines Dismantled . | . . . . . . Machines Sabotaged . | . . . . . . Overloaded Fab Kills . | . . . . . . Hacking | -11 -10 -10 -10 -8 -6 --------- Run | Yrd Mat Min Sub Rec Fac Machines Accessed 8 | . 3 1 . 1 3 Terminals 5 | . 3 1 . 1 . Fabricators . | . . . . . . Repair Stations 1 | . . . . . 1 Recycling Units . | . . . . . . Scanalyzers 1 | . . . . . 1 Garrison Access 1 | . . . . . 1 Total Hacks 14 | . 6 2 . 1 5 Successful 6 | . 3 2 . . 1 Failed 8 | . 3 . . 1 4 Catastrophic 2 | . . . . 1 1 Database Lockouts . | . . . . . . Manual 8 | . 5 . . 1 2 Terminals 9 | . 6 2 . 1 . Fabricators . | . . . . . . Repair Stations 1 | . . . . . 1 Recycling Units . | . . . . . . Scanalyzers 2 | . . . . . 2 Garrison Access 2 | . . . . . 2 Terminal Hacks 3 | . 1 2 . . . Locate Traps 1 | . 1 . . . . Dispatch Records 1 | . . 1 . . . Patrol Status 1 | . . 1 . . . Fabricator Hacks . | . . . . . . Repair Station Hacks . | . . . . . . Recycling Unit Hacks . | . . . . . . Scanalyzer . | . . . . . . Garrison Access Hacks . | . . . . . . Unauthorized Hacks 3 | . 2 . . . 1 Terminals 2 | . 2 . . . . Track 1 | . 1 . . . . Detonate 1 | . 1 . . . . Fabricators . | . . . . . . Repair Stations . | . . . . . . Recycling Units . | . . . . . . Scanalyzers . | . . . . . . Garrison Access 1 | . . . . . 1 Broadcast 1 | . . . . . 1 Data Cores Recovered . | . . . . . . Used . | . . . . . . Hacking Detections 6 | . 3 1 . 1 1 Full Trace Events 1 | . 1 . . . . Feedback Events . | . . . . . . Feedback Blocked . | . . . . . . Robot Schematics Acquired . | . . . . . . Robots Built . | . . . . . . Authchips . | . . . . . . Time . | . . . . . . Total Robot Build Rating . | . . . . . . Part Schematics Acquired . | . . . . . . Parts Built . | . . . . . . Authchips . | . . . . . . Time . | . . . . . . Total Part Build Rating . | . . . . . . Parts Repaired . | . . . . . . Time . | . . . . . . Parts Recycled . | . . . . . . Recycled Matter . | . . . . . . Retrieved Matter . | . . . . . . Retrieved Components . | . . . . . . Parts Scanalyzed . | . . . . . . Part Schematics Acquired . | . . . . . . Parts Damaged . | . . . . . . Bothacking | -11 -10 -10 -10 -8 -6 ------------ Run | Yrd Mat Min Sub Rec Fac Used RIF Installer . | . . . . . . Robots Hacked . | . . . . . . Non-combat . | . . . . . . Combat . | . . . . . . Robot Hacks Applied . | . . . . . . Relay Couplers Released . | . . . . . . Fabnet Peak Effective % . | . . . . . . Robots Rewired . | . . . . . . Allies Hacked . | . . . . . . Hacks Repelled . | . . . . . . Allies | -11 -10 -10 -10 -8 -6 -------- Run | Yrd Mat Min Sub Rec Fac Total Allies . | . . . . . . Largest Group . | . . . . . . Highest-Rated Group . | . . . . . . Highest-Rated Ally . | . . . . . . Total Orders . | . . . . . . Ally Attacks . | . . . . . . Total Damage . | . . . . . . Kills . | . . . . . . Allies Corrupted . | . . . . . . Allies Melted . | . . . . . . Intel | -11 -10 -10 -10 -8 -6 ------- Run | Yrd Mat Min Sub Rec Fac Robot Analysis Total . | . . . . . . Derelict Logs Recovered 2 | . . 1 1 . . Drone Launches . | . . . . . . Drone Recoveries . | . . . . . . Exploration | -11 -10 -10 -10 -8 -6 ------------- Run | Yrd Mat Min Sub Rec Fac Turns Passed 2619 | 120 664 412 262 356 805 Spaces Moved 1749 | 72 380 232 175 358 532 Core 278 | 8 . . . . 270 Treads 41 | . 6 26 . . 9 Legs . | . . . . . . Wheels 1430 | 64 374 206 175 358 253 Hover . | . . . . . . Flight . | . . . . . . Fastest Speed 50 | 50 95 95 95 95 50 Average Speed 93 | 87 96 123 107 95 75 Slowest Speed 240 | 95 160 240 110 95 200 Overloaded Moves . | . . . . . . Propulsion Burnouts . | . . . . . . Robots Hopped . | . . . . . . Cave-ins Triggered . | . . . . . . Exploration Rate (%) 34 | 3 63 45 13 62 20 Regions Visited 5 Branch Regions 3 Pre-discovered Areas 1 | . . 1 . . . Known Exits Taken . | . . . . . . Unknown Exits Taken 5 | 1 1 1 1 1 . Scrap Searched . | . . . . . . Spaces Dug 33 | . . . . . 33 Terrain Destroyed 333 | . . 62 122 . 149 Melee 9 | . . . . . 9 Projectile 2 | . . . . . 2 AOE 322 | . . 62 122 . 138 Terrain Rammed . | . . . . . . Walls Destroyed . | . . . . . . Machines Disabled . | . . . . . . Actions | -11 -10 -10 -10 -8 -6 --------- Run | Yrd Mat Min Sub Rec Fac Total 2484 | 100 613 314 210 369 878 Wait 501 | . 188 49 5 . 259 Move 1744 | 71 379 231 174 357 532 Hop . | . . . . . . Pick Up 23 | 8 3 2 1 5 4 Fast Attach 18 | 7 . . 1 . 10 Attach 16 | . . . 4 1 11 Detach 6 | . . . . . 6 Swap 12 | . 4 7 1 . . Drop 22 | 1 5 3 1 3 9 Fire 119 | 13 34 22 23 3 24 Melee 14 | . . . . . 14 Ram 3 | . . . . . 3 Kick . | . . . . . . Crush 6 | . . . . . 6 Escape Stasis . | . . . . . . Rewire . | . . . . . . Trap . | . . . . . . Miscellaneous . | . . . . . . Route ------- -11/Scrapyard -10/Materials (discovered 3 exits: [*Mat x2] / *Min) -10/Mines (discovered 2 exits: [*Mat] / [*Sub]) -10/Subcaves (discovered 2 exits: [*Mat] / *Rec) -8/Recycling -6/Factory History --------- Turn | Location | Event 3 | -11/Scrapyard | Discovered new exit (range 16) 121 | -11/Scrapyard | Entered Materials 250 | -10/Materials | Discovered new exit (range 16) 317 | -10/Materials | Build established: Mutant 462 | -10/Materials | Discovered new exit (range 15) 700 | -10/Materials | Derelicts attacked the area 734 | -10/Materials | Discovered new exit (range 16) 785 | -10/Materials | Entered Mines 794 | -10/Mines | Joined a pair of Derelicts in attacking an 0b10 outpost 823 | -10/Mines | Discovered new exit (range 9) 830 | -10/Mines | Received a Rocket Launcher from a helpful Derelict 1022 | -10/Mines | Learned location of Zion (-6) 1040 | -10/Mines | Core integrity fell below 50% 1099 | -10/Mines | Build established: Scavenger-Mutant 1185 | -10/Mines | Discovered new exit (range 8) 1197 | -10/Mines | Entered Subcaves 1200 | -10/Subcaves | Learned Materials machine intel 1212 | -10/Subcaves | Discovered new exit (range 16) 1219 | -10/Subcaves | Ambushed by Subdwellers from Twisted Machinery 1396 | -10/Subcaves | Discovered new exit (range 15) 1459 | -10/Subcaves | Entered Recycling 1459 | -8/Recycling | Found Scrap Engine 1807 | -8/Recycling | Discovered new exit (range 9) 1815 | -8/Recycling | Entered Factory 1815 | -6/Factory | Evolved 8 slots: Propulsion x2, Utility x4, Weapon x2 2411 | -6/Factory | Lost 8 parts (1p2n2u3w) 2514 | -6/Factory | Core integrity fell below 50% 2588 | -6/Factory | Core integrity fell below 20% 2620 | -6/Factory | Destroyed by G-67 Veteran with Plasma Rifle Last Messages --------------- 02574_ Arm. Scrap Engine destroyed. 02574_ Scrap Engine core remains intact and functional. 02577_ Slammed into S-27 Virus. 02578_ Arm. Treads destroyed. 02579_ The unstable cave ceiling collapses. 02579_ Slammed into S-27 Virus. 02579_ Destabilizing: Core damaged (-8). 02580_ The unstable cave ceiling collapses. 02581_ Destroyed VTOL Module. 02581_ Destroyed Lgt. Fission Core. 02581_ Penetrated by Slug. 02581_ Hvy. Rocket Launcher destroyed. 02582_ U-05 Engineer lays Concrete. 02592_ U-05 Engineer builds a Wall. 02594_ Scrap Engine destroyed. 02604_ Acquired Hacking Suite. 02607_ Slammed into K-01 Serf. 02608_ Slammed into R-10 Processor. 02619_ G-50 Soldier suffers critical hit (Burn). Map ----- +----------------------------------------------------+ | ?????????????????????????????????????????????????? | | ?????????????????????????????????????????????????? | | ?????????????????????????????????????????????????? | | ?????????????????????????????????????????????????? | | ?????????????????????????????????????????????????? | | ?????????????????????????????????????????????????? | | ?????????????????????????????????????????????????? | | ?????????????????????????????????????????????????? | | ?????????????????????????????????????????????????? | | ?????????????????????????????????????????????????? | | ?????????????????????????????????????????????????? | | ?????????????????????????????????????????????????? | | ?????????????????????????????????????????????????? | | ?????????????????????????????????????????????????? | | ?????????????????????????????????????????????????? | | ?????????????????????????????????????????????????? | | ?????????????????????########????????????????????? | | ????????????????????? +????????????????????? | | ?????????????????????? #????????????????????? | | ?????????????????????? +????????????????????? | | ??????????????????????? #????????????????????? | | ??????????????????????? #????????????????????? | | ????????????########???#k #????????????????????? | | ????????????? ??# #????????????????????? | | ????????????? """ """??# #????????????????????? | | ???????????# """ """ ?# @ #????????????????????? | | ???????????# """ """ ?# #################????? | | ???????????# # ??? | | ????????????? """ """ # ??? | | ????????????? """ """ + g k ??? | | ????????????? """ """ # g g ???? | | ???????????# *# g k ???? | | ???????????# """ """ ?# ############+###????? | | ???????????# """ """ ?# #???????????????????? | | ????????????? """ """??# #???????????????????? | | ????????????? ??# R #???????????????????? | | ????????????########???# #???????????????????? | | ???????????????????????# #???????????????????? | | ???????????????????????# #???????????????????? | | ???????????????????????#s #???????????????????? | | #####+################## #???????????????????? | | #???????????????????? | | #???????????????????? | | #???????????????????? | | #???????????????????? | | #???????????????????? | | ??###########+####### ########???????????????????? | | ???????????????# # #??????????????????????????? | | ???????????????# # #??????????????????????????? | | ???????????????# # ####################???###?? | +----------------------------------------------------+ Best States ------------- Heat Dissipation 51 Energy Generation 12 Energy Capacity 265 Matter Stores 300 Matter Capacity 550 Sight Range 22 Terrain Scan Density 10 Propulsion Shielding 33 Evasion (%) 50 Recoil Reduction 1 Energy Filtering 30 Offensive Hacking 10 Item Schematics ----------------- None Robot Schematics ------------------ None Fabricated ------------ Nothing Alien Tech Used ----------------- None Achievements -------------- None Challenges ------------ None Game ------ Seed CobblerAuthchipLauncher Manual? 0 Play Time 00:22:41 Cumulative 66.2 hours Start 2024.04.09 @ 15:13:08 End 2024.04.09 @ 15:36:31 Sessions 1 Manual Loads 0 Difficulty Rogue Special Mode None Game No. 81 Rogue 81 Adventurer 0 Explorer 0 Win Type - Total 0 Types 0/0/0/0/0/0/0/0/0 Lore% 42 Gallery% 60 Achievement% 48 Wizard Run 0 Options --------- Layout 1 ASCII 0 Keyboard 0 Movement Numpad Keybinds 0 Fullscreen 1 Font 24/Smallcaps Map View 50x35 Zoom Use 0% Tactical HUD 1 Map Filters NONE Filters NONE Steam 1 RUN: 89b047ea-4146-400a-b1ee-020c83c0454b